bitfinex/quotes_ETHUSD_20250823
["timestamp","ask_amount","ask_price","bid_price","bid_amount"]
[1755911575775,3.591,4814.2,4814.1,0.28799482]
[1755911576772,3.591,4814.2,4814.1,0.19469482]
[1755911577874,4.0416,4814.2,4814.1,0.19469482]
[1755911578059,4.3501,4814.2,4814.1,0.19469482]
[1755911578577,4.0416,4814.2,4814.1,0.19469482]
[1755911578872,4.0416,4814.2,4814.0,0.001]
[1755911579077,4.0416,4814.2,4814.1,0.19482179]
[1755911579445,3.591,4814.2,4814.1,0.19482179]
[1755911579937,3.59,4814.2,4814.1,0.19482179]
[1755911580642,4.0406,4814.2,4814.1,0.19482179]
[1755911581877,4.3491,4814.2,4814.1,0.19482179]
[1755911587056,4.3491,4814.2,4814.1,0.19482422]
[1755911587781,4.3491,4814.2,4814.1,0.19482066]
[1755911589377,4.3491,4814.2,4814.1,0.19582066]
[1755911589946,14.3491,4814.2,4814.1,0.19582066]
[1755911591348,17.24236051,4814.2,4814.1,0.19582066]
[1755911593053,17.24236051,4814.2,4814.1,0.19571209]
[1755911594861,7.24236051,4814.2,4814.1,0.19571209]
[1755911596190,7.24236051,4814.2,4814.1,0.001]
[1755911596363,7.24236051,4814.2,4814.1,0.19563288]
[1755911599877,17.24236051,4814.2,4814.1,0.19563288]
[1755911601779,17.43799351,4814.2,4814.1,0.19563288]
[1755911604515,13.50139351,4814.2,4814.1,0.19563288]
[1755911604687,11.597,4814.2,4814.1,5.56987589]
[1755911604891,11.597,4814.2,4814.1,6.18736348]
[1755911605206,5.082,4814.2,4814.1,5.9927306]
[1755911605406,5.082,4814.2,4814.1,6.18733632]
[1755911606286,5.082,4814.2,4814.1,6.12903632]
[1755911610104,1.597,4814.2,4814.1,6.12903632]
[1755911610284,5.082,4814.2,4814.1,6.12903632]
[1755911611332,5.082,4814.2,4814.1,6.12902669]
[1755911614040,8.70496051,4814.2,4814.1,0.19559609]
[1755911614345,8.70496051,4814.2,4814.1,0.001]
[1755911614638,8.80896051,4814.2,4814.1,0.1956025]
[1755911615019,18.80896051,4814.2,4814.1,0.1956025]
[1755911621912,18.80896051,4814.2,4814.1,0.19559932]
[1755911623612,18.80896051,4814.2,4814.1,0.1956011]
[1755911624406,18.80896051,4814.2,4814.1,0.19560105]
[1755911632742,18.80896051,4814.2,4814.1,0.001]
[1755911632932,18.80896051,4814.2,4814.1,0.19560779]
[1755911633313,18.80896051,4814.2,4814.1,0.19560833]
[1755911639551,14.59426051,4814.2,4814.1,0.28890833]
[1755911639747,14.49026051,4814.2,4814.1,0.28890833]
[1755911639962,7.97326051,4814.2,4814.1,0.28890833]
[1755911641243,7.97326051,4814.2,4814.1,0.0943]
[1755911641440,4.49026051,4814.2,4814.1,0.28909556]
[1755911641648,7.97326051,4814.2,4814.1,0.28909556]
[1755911643962,7.97326051,4814.2,4814.1,0.28913179]
[1755911645551,5.08,4814.2,4814.1,0.28913179]
[1755911646978,5.08,4814.2,4814.1,0.289031]
[1755911650086,5.08,4814.2,4814.1,0.28898428]
[1755911650248,5.08,4814.2,4814.1,0.19568428]
[1755911650456,5.184,4814.2,4814.1,0.19568428]
[1755911652497,5.9225,4814.2,4814.1,0.19568428]
[1755911652676,8.81576051,4814.2,4814.1,0.19568428]
[1755911652879,18.81576051,4814.2,4814.1,0.19568428]
[1755911653684,21.81576051,4814.2,4814.1,0.19568428]
[1755911654255,22.47576051,4814.2,4814.1,0.19568428]
[1755911654676,22.67144551,4814.2,4814.1,0.19568428]
[1755911655885,22.67144551,4814.2,4814.1,0.001]
[1755911656183,22.67144551,4814.2,4814.1,0.19564412]
[1755911656553,2.67361639,4813.5,4813.3,0.001]
[1755911656781,3.8803,4813.4,4813.3,0.001]
[1755911657188,4.3245,4813.4,4813.3,0.001]
[1755911657953,14.3245,4813.4,4813.3,0.001]
[1755911659971,10.8425,4813.4,4813.3,0.001]
[1755911660259,14.3245,4813.4,4813.3,0.001]
[1755911660996,2.187,4813.1,4809.8,2.63114175]
[1755911661157,2.187,4813.1,4810.0,0.4382]
[1755911661158,3.0,4811.9,4810.0,0.4382]
[1755911661362,0.3072,4810.9,4810.0,0.4382]
[1755911661668,5.01116189,4810.9,4810.0,0.4382]
[1755911661885,8.96936189,4810.9,4810.0,0.4382]
[1755911662085,9.12602237,4810.9,4810.0,0.4382]
[1755911662405,9.59852237,4810.9,4810.0,0.4382]
[1755911662963,19.59852237,4810.9,4810.0,0.4382]
[1755911663282,19.59852237,4810.9,4809.8,0.02]
[1755911663504,19.59852237,4810.9,4809.8,0.4582]
[1755911663668,19.49156048,4810.9,4809.8,0.4582]
[1755911664089,19.59345482,4810.9,4809.8,0.4582]
[1755911664284,19.49156048,4810.9,4809.8,0.4582]
[1755911664485,19.49156048,4810.9,4810.8,0.76]
[1755911664486,11.597,4810.9,4810.8,0.76]
[1755911664689,15.118,4810.9,4810.8,0.76]
[1755911664862,15.118,4810.9,4810.8,0.02]
[1755911665079,15.4252,4810.9,4810.8,0.02]
[1755911666177,15.118,4810.9,4810.8,0.02]
[1755911668902,15.118,4810.9,4810.8,0.3218]
[1755911669897,15.4252,4810.9,4810.8,0.02]
[1755911671004,15.5292,4810.9,4810.8,0.02]
[1755911671987,15.5292,4810.9,4810.8,0.021]
[1755911672387,16.0017,4810.9,4810.8,0.021]
[1755911672673,19.0017,4810.9,4810.8,0.021]
[1755911674470,18.5282,4810.9,4810.8,0.021]
[1755911675920,15.0082,4810.9,4810.8,0.021]
[1755911676122,18.5272,4810.9,4810.8,0.021]
[1755911676691,14.701,4810.9,4810.8,0.021]
[1755911676894,14.701,4810.9,4810.8,0.3228]
[1755911677099,18.219,4810.9,4810.8,0.3228]
[1755911677787,20.89261639,4810.9,4810.8,0.021]
[1755911677992,21.10251639,4810.9,4810.8,0.021]
[1755911678193,21.57241639,4810.9,4810.8,0.021]
[1755911680806,21.10251639,4810.9,4810.8,0.021]
[1755911681011,17.58451639,4810.9,4810.8,0.021]
[1755911681212,21.10151639,4810.9,4810.8,0.021]
[1755911681813,21.57141639,4810.9,4810.8,0.021]
[1755911682095,17.37461639,4810.9,4810.8,0.3228]
[1755911682300,20.89061639,4810.9,4810.8,0.761]
[1755911682740,20.89061639,4810.9,4810.8,0.021]
[1755911683306,17.68181639,4810.9,4810.8,0.021]
[1755911683535,21.19781639,4810.9,4810.8,0.021]
[1755911684834,21.19781639,4810.9,4810.8,0.761]
[1755911684835,20.89061639,4810.9,4810.8,0.761]
[1755911685036,20.89061639,4810.9,4810.8,0.3228]
[1755911685542,20.89061639,4810.9,4810.8,0.021]
[1755911686151,21.19781639,4810.9,4810.8,0.021]
[1755911688931,20.89061639,4810.9,4810.8,0.3092]
[1755911689139,17.37461639,4810.9,4810.8,0.3092]
[1755911689719,20.88561639,4810.9,4810.8,0.3092]
[1755911690253,17.37461639,4810.9,4810.8,0.3092]
[1755911690411,21.33193846,4810.9,4810.8,0.3092]
[1755911690916,17.82093846,4810.9,4810.8,0.3092]
[1755911691552,21.33193846,4810.9,4810.8,0.021]
[1755911692032,21.33193846,4810.9,4810.8,0.7514]
[1755911692033,17.82093846,4810.9,4810.8,0.7514]
[1755911692235,21.33093846,4810.9,4810.8,0.7514]
[1755911692819,21.33093846,4810.9,4810.8,0.021]
[1755911694231,21.33093846,4810.9,4810.8,0.3092]
[1755911694648,17.82093846,4810.9,4810.8,0.3092]
[1755911695027,26.32693846,4810.9,4810.8,0.021]
[1755911695665,26.32693846,4810.9,4810.8,0.3092]
[1755911696119,22.81593846,4810.9,4810.8,0.3092]
[1755911696319,26.32593846,4810.9,4810.8,0.3092]
[1755911696824,20.208,4810.9,4810.8,0.7514]
[1755911700042,20.208,4810.9,4810.8,0.3092]
[1755911700243,20.4945,4810.9,4810.8,0.021]
[1755911700446,24.39113904,4810.9,4810.8,0.021]
[1755911700825,27.50695543,4810.9,4810.8,0.021]
[1755911704067,28.47668514,4810.9,4810.8,0.021]
[1755911704226,0.66,4810.4,4809.8,0.021]
[1755911704430,10.82544301,4809.9,4809.8,0.021]
[1755911704744,3.66,4809.8,4808.0,0.4422]
[1755911704945,0.9465,4808.9,4808.0,0.4422]
[1755911705127,9.8795,4808.9,4807.2,0.4422]
[1755911705328,14.29213904,4808.9,4807.5,0.4422]
[1755911705971,24.73433904,4808.9,4807.5,0.4422]
[1755911706187,24.28413904,4808.9,4806.8,0.02]
[1755911706324,0.5,4808.6,4806.8,0.02]
[1755911706671,2.74040846,4806.8,4805.8,0.02]
[1755911706836,4.598,4805.9,4805.8,0.02]
[1755911707020,8.4635,4805.9,4805.8,0.02]
[1755911707225,8.9137,4805.9,4805.8,0.02]
[1755911707434,9.5737,4805.9,4805.8,0.02]
[1755911707730,10.1771058,4805.9,4805.8,0.02]
[1755911708126,20.1771058,4805.9,4805.8,0.02]
[1755911708532,16.5981058,4805.9,4805.8,0.02]
[1755911708733,20.1781058,4805.9,4805.8,0.02]
[1755911708946,20.1781058,4805.9,4805.8,0.3082]
[1755911708947,12.097,4805.9,4805.8,0.3082]
[1755911709460,15.4665,4805.9,4805.8,0.02]
[1755911709853,15.18,4805.9,4805.8,0.02]
[1755911710161,11.598,4805.9,4805.8,0.7504]
[1755911710379,15.18,4805.9,4805.8,0.7504]
[1755911712031,15.18,4805.9,4805.8,0.3082]
[1755911713495,15.18,4805.9,4805.8,0.7504]
[1755911714005,11.598,4805.9,4805.8,0.7504]
[1755911714356,15.281,4805.9,4805.8,0.7504]
[1755911715191,5.281,4805.9,4805.8,0.7504]
[1755911715924,1.702,4805.9,4805.8,0.7504]
[1755911716201,1.598,4805.9,4805.8,0.7504]
[1755911716363,5.176,4805.9,4805.8,0.7504]
[1755911716696,1.598,4805.9,4805.8,0.7504]
[1755911716993,5.175,4805.9,4805.8,0.7504]
[1755911717515,5.175,4805.9,4805.8,0.8544]
[1755911717661,5.175,4805.9,4805.8,1.5144]
[1755911718276,5.175,4805.9,4805.8,1.00584]
[1755911718518,5.175,4805.9,4805.8,0.90184]
[1755911718679,1.598,4805.9,4805.8,0.7504]
[1755911718878,5.174,4805.9,4805.8,0.7504]
[1755911720493,5.172,4805.9,4805.8,0.7504]
[1755911720690,5.172,4805.9,4805.8,1.4104]
[1755911720917,5.172,4805.9,4805.8,1.5144]
[1755911721118,1.599,4806.6,4805.9,0.66]
[1755911721320,1.599,4806.6,4806.4,0.104]
[1755911721623,0.002,4806.8,4806.6,0.66]
[1755911721935,0.002,4806.8,4806.5,0.8818]
[1755911721936,3.574,4806.7,4806.5,0.104]
[1755911722137,0.002,4806.8,4806.6,15.14682924]
[1755911722351,0.002,4806.8,4806.7,2.18508292]
[1755911722628,0.002,4806.8,4806.7,2.96288292]
[1755911724108,0.002,4807.3,4806.8,10.66]
[1755911724308,0.002,4807.3,4807.2,1.075]
[1755911724715,0.002,4807.3,4807.2,1.5418]
[1755911725011,0.002,4807.3,4807.2,2.69598]
[1755911725224,0.002,4807.3,4807.2,1.5418]
[1755911729345,0.042,4807.8,4807.2,1.5418]
[1755911729550,0.042,4807.8,4807.4,11.67882924]
[1755911729756,0.042,4807.8,4807.7,1.075]
[1755911730423,10.0,4809.5,4807.8,1.93538292]
[1755911730621,10.0,4809.5,4809.4,0.971]
[1755911730827,10.0,4809.5,4809.4,1.5418]
[1755911731115,10.0,4809.5,4809.4,0.311]
[1755911731251,10.0,4809.5,4808.9,0.4668]
[1755911731446,3.568,4809.4,4809.0,1.28056292]
[1755911731667,3.568,4809.4,4809.3,0.311]
[1755911731952,3.8664,4809.4,4809.0,1.28056292]
[1755911732167,0.4429,4809.3,4808.1,0.66]
[1755911732767,1.599,4809.6,4809.2,0.311]
[1755911732969,1.599,4809.6,4809.3,0.48759304]
[1755911733155,1.599,4809.6,4808.6,11.67882924]
[1755911733156,3.572,4809.5,4808.7,0.66]
[1755911733357,3.572,4809.5,4809.4,0.7778]
[1755911733559,3.573,4809.5,4809.4,0.7778]
[1755911733883,3.8714,4809.5,4807.9,2.17446853]
[1755911734090,3.8714,4809.5,4808.0,21.31786807]
[1755911734091,4.3143,4809.5,4808.0,21.31786807]
[1755911734287,4.3143,4809.5,4808.1,0.48759823]
[1755911736187,3.8714,4809.5,4808.8,0.02]
[1755911737484,3.8714,4809.5,4808.8,0.4868]
[1755911737884,4.3143,4809.5,4808.8,0.02]
[1755911738091,4.3143,4809.5,4808.9,0.02079477]
[1755911738594,4.3163,4809.5,4808.9,0.02079477]
[1755911741402,4.4203,4809.5,4808.8,0.104]
[1755911741605,4.4203,4809.5,4808.9,0.02079477]
[1755911742316,0.4429,4809.4,4808.8,0.104]
[1755911742601,0.2984,4808.9,4808.8,0.104]
[1755911742810,4.3053,4808.9,4808.1,0.001]
[1755911742991,0.104,4808.4,4808.1,0.001]
[1755911743197,0.2984,4808.2,4808.1,0.001]
[1755911743602,0.7413,4808.2,4808.1,0.001]
[1755911745914,10.7413,4808.2,4808.1,0.001]
[1755911748295,13.7413,4808.2,4808.1,0.001]
[1755911749433,14.4013,4808.2,4808.1,0.001]
[1755911749599,17.19338688,4808.2,4808.1,0.001]
[1755911750033,19.86700327,4808.2,4808.1,0.001]
[1755911751721,17.67600327,4808.2,4808.1,0.001]
[1755911752228,17.67534529,4808.2,4808.1,0.001]
[1755911752594,21.24534529,4808.2,4808.1,0.001]
[1755911752819,17.67534529,4808.2,4808.1,0.001]
[1755911753029,21.24334529,4808.2,4808.1,0.001]
[1755911753332,20.80197641,4808.2,4808.1,0.001]
[1755911753925,21.12757129,4808.2,4808.1,0.001]
[1755911754897,21.23157129,4808.2,4808.1,0.001]
[1755911759450,20.90597641,4808.2,4808.1,0.001]
[1755911761022,17.33697641,4808.2,4808.1,0.001]
[1755911761244,20.90097641,4808.2,4808.1,0.001]
[1755911762321,17.23297641,4808.2,4808.1,0.001]
[1755911762537,17.33697641,4808.2,4808.1,0.001]
[1755911763139,20.89797641,4808.2,4808.1,0.001]
[1755911763335,13.23407641,4808.2,4808.1,0.001]
[1755911763524,16.49667641,4808.2,4808.1,0.292]
[1755911763710,12.93567641,4808.2,4808.1,0.292]
[1755911763909,19.49767641,4808.2,4808.1,0.292]
[1755911764113,12.93567641,4808.2,4808.1,0.292]
[1755911764342,13.2612202,4808.2,4808.1,0.7216]
[1755911764522,13.99154379,4808.2,4808.1,0.7216]
[1755911764720,10.42954379,4808.2,4808.1,0.7216]
[1755911764934,13.99154379,4808.2,4808.1,0.7216]
[1755911765139,16.666,4808.2,4808.1,0.7216]
[1755911765637,10.104,4808.2,4808.1,0.7216]
[1755911765840,13.666,4808.2,4808.1,0.7216]
[1755911766213,13.562,4808.2,4808.1,0.7216]
[1755911768462,16.8089,4808.2,4808.1,0.001]
[1755911768658,17.8977,4808.2,4808.1,0.001]
[1755911768875,20.57131639,4808.2,4808.1,0.001]
[1755911771964,22.32851639,4808.2,4808.1,0.001]
[1755911772266,23.20104301,4808.2,4808.1,0.001]
[1755911774491,19.64404301,4808.2,4808.1,0.001]
[1755911774695,23.19904301,4808.2,4808.1,0.001]
[1755911774989,23.52461421,4808.2,4808.1,0.001]
[1755911775882,25.79731319,4808.2,4808.1,0.001]
[1755911776287,25.90131319,4808.2,4808.1,0.001]
[1755911776956,23.82153282,4808.2,4808.1,0.001]
[1755911777285,24.37619109,4808.2,4808.1,0.001]
[1755911778091,23.82153282,4808.2,4808.1,0.001]
[1755911778586,26.75669846,4808.2,4808.1,0.001]
[1755911778763,26.01715409,4808.2,4808.1,0.001]
[1755911780647,20.38237372,4808.2,4808.1,0.001]
[1755911780853,23.49296162,4808.2,4808.1,0.001]
[1755911782269,24.23427735,4808.2,4808.1,0.001]
[1755911782697,16.55716162,4808.2,4808.1,0.001]
[1755911783003,12.23564523,4808.2,4808.1,0.7728]
[1755911783300,11.599,4808.2,4808.1,0.671]
[1755911783460,15.151,4808.2,4808.1,0.2066]
[1755911783862,18.151,4808.2,4808.1,0.2066]
[1755911784388,18.6354,4808.2,4808.1,0.2066]
[1755911784755,15.6354,4808.2,4808.1,0.2066]
[1755911785091,15.6354,4808.2,4807.8,0.02]
[1755911785092,0.66,4808.0,4807.8,0.02]
[1755911785393,9.7085,4807.9,4807.8,0.02]
[1755911785597,10.15331397,4807.9,4807.8,0.02]
[1755911785895,10.61981397,4807.9,4807.8,0.02]
[1755911786260,10.81289017,4807.9,4807.8,0.02]
[1755911786664,8.71148531,4807.9,4807.8,0.02]
[1755911786982,20.34639017,4807.9,4807.8,0.02]
[1755911787294,14.60239017,4807.9,4807.8,0.02]
[1755911787457,17.85189017,4807.9,4807.8,0.02]
[1755911787657,17.85189017,4807.9,4807.8,0.3274]
[1755911787976,18.15639017,4807.9,4807.8,0.02]
[1755911788394,20.83000656,4807.9,4807.8,0.02]
[1755911788771,25.63593036,4807.9,4807.8,0.02]
[1755911789568,25.63693036,4807.9,4807.8,0.02]
[1755911789801,26.15558905,4807.9,4807.8,0.02]
[1755911790004,25.82999056,4807.9,4807.8,0.02]
[1755911790217,28.48749056,4807.9,4807.8,0.02]
[1755911791974,29.1269347,4807.9,4807.8,0.02]
[1755911792168,28.57083956,4807.9,4807.8,0.02]
[1755911793102,28.67480733,4807.9,4807.8,0.02]
[1755911793307,29.00041521,4807.9,4807.8,0.02]
[1755911795817,31.08032535,4807.9,4807.8,0.02]
[1755911795984,31.63642049,4807.9,4807.8,0.02]
[1755911796342,7.93099667,4807.7,4807.6,0.001]
[1755911796510,22.1917958,4807.7,4807.6,0.001]
[1755911796718,23.39961153,4807.7,4807.6,0.001]
[1755911796902,32.6582958,4807.7,4807.6,0.001]
[1755911797103,33.77280616,4807.7,4807.6,0.001]
[1755911797443,33.77280616,4807.7,4807.1,0.001]
[1755911797444,5.851,4807.2,4807.1,0.001]
[1755911797727,25.92522499,4807.2,4807.1,0.001]
[1755911797892,26.39172499,4807.2,4807.1,0.001]
[1755911798499,22.83872499,4807.2,4807.1,0.001]
[1755911798726,15.82506059,4807.2,4807.1,0.001]
[1755911798908,26.15079178,4807.2,4807.1,0.001]
[1755911799337,7.93129956,4807.0,4806.8,0.02]
[1755911799624,12.5514823,4807.0,4806.8,0.02]
[1755911799929,13.0179823,4807.0,4806.8,0.02]
[1755911800085,9.4559823,4807.0,4806.8,0.02]
[1755911800291,13.84164105,4807.0,4806.8,0.02]
[1755911800910,13.84163337,4807.0,4806.8,0.02]
[1755911801289,13.1013593,4807.0,4806.8,0.02]
[1755911801684,9.5393593,4807.0,4806.8,0.02]
[1755911801901,22.9855185,4807.0,4806.8,0.02]
[1755911802106,23.10083902,4807.0,4806.8,0.02]
[1755911802292,7.93134284,4806.9,4806.8,0.02]
[1755911802600,5.851,4806.2,4806.1,0.001]
[1755911802805,16.7772162,4806.2,4806.1,0.001]
[1755911803123,17.2437162,4806.2,4806.1,0.001]
[1755911803324,17.68499734,4806.2,4806.1,0.001]
[1755911803489,18.42468503,4806.2,4806.1,0.001]
[1755911803926,21.6515392,4806.2,4806.1,0.001]
[1755911804089,23.73607037,4806.2,4806.1,0.001]
[1755911804295,20.16607037,4806.2,4806.1,0.001]
[1755911804491,24.40707037,4806.2,4806.1,0.001]
[1755911804736,25.17807037,4806.2,4806.1,0.001]
[1755911805034,24.21443036,4806.2,4806.1,0.001]
[1755911805192,24.71142539,4806.2,4806.1,0.001]
[1755911805539,25.17792539,4806.2,4806.1,0.001]
[1755911805716,24.40692539,4806.2,4806.1,0.001]
[1755911805915,24.40682252,4806.2,4806.1,0.001]
[1755911806294,27.25841964,4806.2,4806.1,0.001]
[1755911807727,27.34181464,4806.2,4806.1,0.001]
[1755911808028,27.34177794,4806.2,4806.1,0.001]
[1755911808202,22.98977794,4806.2,4806.1,0.001]
[1755911808387,22.98977794,4806.2,4806.1,0.2991]
[1755911808388,23.53582536,4806.2,4806.1,0.2991]
[1755911808590,23.6380019,4806.2,4806.1,0.2991]
[1755911808991,23.6380023,4806.2,4806.1,0.747]
[1755911809189,23.19501139,4806.2,4806.1,0.2991]
[1755911809392,24.29794277,4806.2,4806.1,0.001]
[1755911809612,27.0196415,4806.2,4806.1,0.001]
[1755911809810,24.93899567,4806.2,4806.1,0.001]
[1755911810037,24.62369567,4806.2,4806.1,0.001]
[1755911810332,34.65395805,4806.2,4806.1,0.001]
[1755911810498,32.13121222,4806.2,4806.1,0.001]
[1755911811238,31.81591593,4806.2,4806.1,0.001]
[1755911811430,33.89656176,4806.2,4806.1,0.001]
[1755911812130,34.21186176,4806.2,4806.1,0.001]
[1755911812607,34.65396176,4806.2,4806.1,0.001]
[1755911813442,35.2084601,4806.2,4806.1,0.001]
[1755911813802,32.2084601,4806.2,4806.1,0.001]
[1755911814118,35.2084601,4806.2,4806.1,0.001]
[1755911814702,4.93177571,4805.9,4805.8,0.021]
[1755911815020,27.20684374,4805.9,4805.8,0.021]
[1755911815233,27.10284374,4805.9,4805.8,0.021]
[1755911815834,28.09849806,4805.9,4805.8,0.021]
[1755911816009,38.09849806,4805.9,4805.8,0.021]
[1755911816532,37.66029719,4805.9,4805.8,0.021]
[1755911816698,37.21819719,4805.9,4805.8,0.021]
[1755911816900,36.90301273,4805.9,4805.8,0.021]
[1755911817233,36.90301273,4805.9,4805.8,0.3191]
[1755911817403,33.90301273,4805.9,4805.8,0.3191]
[1755911817840,33.31801273,4805.9,4805.8,0.3191]
[1755911818013,34.82223702,4805.9,4805.8,0.3191]
[1755911818210,36.78762925,4805.9,4805.8,0.3191]
[1755911818824,36.78762925,4805.9,4805.8,0.021]
[1755911819141,37.10292925,4805.9,4805.8,0.021]
[1755911819312,37.65706118,4805.9,4805.8,0.021]
[1755911819518,37.65704488,4805.9,4805.8,0.021]
[1755911819735,37.34074488,4805.9,4805.8,0.021]
[1755911820042,37.46373911,4805.9,4805.8,0.021]
[1755911820201,37.65614767,4805.9,4805.8,0.021]
[1755911820405,37.58636317,4805.9,4805.8,0.021]
[1755911820607,31.52928746,4805.9,4805.8,0.3191]
[1755911820937,36.28425824,4805.9,4805.8,0.3191]
[1755911821138,36.94425824,4805.9,4805.8,0.021]
[1755911821439,35.17878253,4805.9,4805.8,0.021]
[1755911821640,34.86348253,4805.9,4805.8,0.021]
[1755911822003,36.94425824,4805.9,4805.8,0.021]
[1755911822205,37.25955824,4805.9,4805.8,0.021]
[1755911823721,34.20548253,4805.9,4805.8,0.767]
[1755911824038,34.52926068,4805.9,4805.8,0.767]
[1755911824342,36.92533639,4805.9,4805.8,0.021]
[1755911824543,37.58533639,4805.9,4805.8,0.021]
[1755911825252,37.70111101,4805.9,4805.8,0.021]
[1755911825416,38.14321101,4805.9,4805.8,0.021]
[1755911826048,37.80511101,4805.9,4805.8,0.021]
[1755911826354,38.5447987,4805.9,4805.8,0.021]
[1755911826649,38.69511101,4805.9,4805.8,0.021]
[1755911827154,39.80627585,4805.9,4805.8,0.021]
[1755911827648,38.69511101,4805.9,4805.8,0.021]
[1755911827814,38.36933286,4805.9,4805.8,0.021]
[1755911828010,38.3701601,4805.9,4805.8,0.021]
[1755911828214,38.3701601,4805.9,4805.6,0.001]
[1755911828215,4.9318623,4805.7,4805.6,0.001]
[1755911828424,4.9318623,4805.7,4804.8,0.02]
[1755911828425,5.191,4805.1,4804.8,0.02]
[1755911828649,15.16017905,4805.0,4804.9,0.4479]
[1755911828818,5.851,4804.9,4804.8,0.02]
[1755911829033,14.41194429,4804.9,4804.8,0.3181]
[1755911829255,17.87807459,4804.9,4804.8,0.3181]
[1755911829416,18.39707459,4804.9,4804.8,0.766]
[1755911829618,14.81507459,4804.9,4804.8,0.766]
[1755911829942,18.39607459,4804.9,4804.8,0.766]
[1755911831028,14.15507459,4804.9,4804.8,0.766]
[1755911831352,17.21707459,4804.9,4804.8,0.766]
[1755911831552,17.87707459,4804.9,4804.8,0.766]
[1755911831755,13.63607459,4804.9,4804.8,0.766]
[1755911831915,16.689,4804.9,4804.8,0.766]
[1755911832115,17.13447037,4804.9,4804.8,0.766]
[1755911832567,17.79448099,4804.9,4804.8,0.766]
[1755911833323,20.42809738,4804.9,4804.8,0.766]
[1755911834021,20.32409738,4804.9,4804.8,0.766]
[1755911834244,20.64988642,4804.9,4804.8,0.766]
[1755911834758,25.65288642,4804.9,4804.8,0.766]
[1755911835750,22.06788642,4804.9,4804.8,0.766]
[1755911835921,25.65188642,4804.9,4804.8,0.766]
[1755911836670,28.79373084,4804.9,4804.8,0.02]
[1755911836951,22.06788642,4804.9,4804.8,0.766]
[1755911837153,25.51948547,4804.9,4804.8,0.02]
[1755911837459,25.6355014,4804.9,4804.8,0.02]
[1755911837630,25.95080355,4804.9,4804.8,0.02]
[1755911837822,25.63550355,4804.9,4804.8,0.02]
[1755911838152,25.63550355,4804.9,4804.8,0.3181]
[1755911838520,26.0762548,4804.9,4804.8,0.793]
[1755911839064,26.0762548,4804.9,4804.8,0.794]
[1755911839367,26.0762548,4804.9,4804.8,0.3191]
[1755911839654,26.7017658,4804.9,4804.8,0.3191]
[1755911839860,26.7017017,4804.9,4804.8,0.021]
[1755911840020,26.70170156,4804.9,4804.8,0.3153]
[1755911840223,27.02751719,4804.9,4804.8,0.3153]
[1755911840621,26.70170156,4804.9,4804.8,0.3153]
[1755911841034,26.81772199,4804.9,4804.8,0.021]
[1755911841219,26.81772811,4804.9,4804.8,0.021]
[1755911841444,26.70170156,4804.9,4804.8,0.021]
[1755911841627,29.11475941,4804.9,4804.8,0.021]
[1755911841831,27.03355065,4804.9,4804.8,0.021]
[1755911842044,31.30575941,4804.9,4804.8,0.021]
[1755911843328,2.191,4804.0,4803.8,0.02]
[1755911843658,2.851,4802.9,4801.7,0.4749]
[1755911843860,16.6553819,4802.9,4801.7,0.4749]
[1755911844032,19.1829383,4802.9,4801.7,0.4749]
[1755911844233,19.1829383,4802.9,4800.0,0.02468973]
[1755911844234,2.851,4802.6,4800.0,0.02468973]
[1755911844448,5.74213113,4802.8,4800.0,0.02468973]
[1755911844449,2.261,4801.9,4800.0,0.02468973]
[1755911844630,5.70648099,4801.9,4801.8,0.3173]
[1755911844823,9.86277984,4801.9,4801.8,0.023]
[1755911845024,11.08450695,4801.9,4801.8,0.023]
[1755911845260,9.1265216,4801.9,4801.8,0.023]
[1755911845625,6.53000427,4801.9,4801.8,0.3173]
[1755911845963,6.33541605,4801.9,4801.8,0.3173]
[1755911846164,15.89168152,4801.9,4801.8,0.7922]
[1755911846468,24.06339052,4801.9,4801.8,0.023]
[1755911846650,24.98005427,4801.9,4801.8,0.023]
[1755911846967,22.78905427,4801.9,4801.8,0.023]
[1755911847263,22.78905427,4801.9,4800.0,0.02468973]
[1755911847264,5.74285601,4801.1,4800.0,0.02468973]
[1755911847443,12.47942101,4801.1,4800.0,0.02468973]
[1755911847620,2.74294278,4800.9,4800.0,0.02468973]
[1755911847826,17.44683832,4800.9,4800.0,0.02468973]
[1755911848041,2.74328993,4800.1,4800.0,0.02568973]
[1755911848236,2.74328993,4800.1,4796.0,10.0]
[1755911848237,2.851,4798.9,4796.0,10.0]
[1755911848538,5.5602,4797.9,4796.2,0.4749]
[1755911848785,9.62146375,4797.9,4796.2,0.4749]
[1755911848953,15.70426375,4797.9,4796.0,10.0]
[1755911849262,3.65081523,4797.9,4797.8,0.7892]
[1755911849447,1.601,4797.9,4797.8,0.7892]
[1755911849648,0.06504774,4797.9,4797.8,0.7892]
[1755911849865,0.04725283,4797.9,4797.8,0.7892]
[1755911850159,3.65901663,4797.9,4797.8,0.7892]
[1755911850361,2.03366291,4797.9,4797.8,0.7892]
[1755911850562,1.40895253,4797.9,4797.8,0.7892]
[1755911850765,0.626008,4800.7,4797.9,0.66]
[1755911850971,0.73572724,4803.0,4798.4,0.66]
[1755911850972,1.601,4800.6,4798.4,0.66]
[1755911851122,0.10658329,4802.6,4798.6,0.66]
[1755911851123,5.232,4800.5,4798.6,0.66]
[1755911851329,1.601,4800.4,4798.7,0.02083897]
[1755911851569,5.232,4800.3,4798.1,0.66]